bitfinex-derivatives/quotes_ETHF0:USTF0_20250112
["timestamp","ask_amount","ask_price","bid_price","bid_amount"]
[1736724328701,0.21563,3247.7,3247.6,3.2078]
[1736724328908,0.21562,3247.9,3247.7,0.21563]
[1736724329205,0.21563,3247.8,3247.6,3.42343]
[1736724330411,0.21562,3247.9,3247.6,3.42343]
[1736724330707,0.21562,3247.8,3247.6,3.42343]
[1736724331009,0.21562,3247.9,3247.7,0.21563]
[1736724331508,0.21562,3247.9,3247.6,3.42343]
[1736724331902,0.21562,3247.9,3247.7,0.21563]
[1736724333105,2.14026366,3248.1,3247.7,0.21563]
[1736724333299,0.21562,3248.0,3247.7,0.21563]
[1736724333514,0.21562,3248.0,3247.6,3.2078]
[1736724333515,2.35587366,3248.1,3247.8,0.21562]
[1736724334212,0.464,3248.0,3247.8,0.21562]
[1736724335710,0.464,3248.0,3247.6,3.2078]
[1736724335908,0.464,3248.0,3247.9,0.21562]
[1736724336415,0.67961,3248.0,3247.8,0.21562]
[1736724336611,0.21562,3247.9,3247.7,0.21563]
[1736724336907,0.464,3248.0,3247.6,3.2078]
[1736724337109,0.464,3248.0,3247.8,0.21562]
[1736724337110,0.67961,3248.0,3247.8,0.21562]
[1736724337313,0.67961,3248.0,3247.7,0.21563]
[1736724337608,0.67961,3248.0,3247.6,3.2078]
[1736724337815,0.67961,3248.0,3247.8,0.21562]
[1736724338313,0.67961,3248.0,3247.7,0.21563]
[1736724338507,0.464,3248.0,3247.6,3.2078]
[1736724338708,0.464,3248.0,3247.9,0.21562]
[1736724340410,2.14026366,3248.1,3247.6,3.2078]
[1736724340411,1.23746366,3248.1,3247.7,2.16348685]
[1736724340612,8.43790754,3248.4,3248.3,0.21559]
[1736724341913,3.6779,3248.6,3248.5,0.21558]
[1736724343216,0.4701,3248.6,3248.5,0.21558]
[1736724348118,0.4727,3248.7,3248.6,0.21557]
[1736724348321,0.4424,3248.9,3248.8,0.21556]
[1736724348518,0.8843,3248.9,3248.8,0.21556]
[1736724353417,1.09985,3248.9,3248.8,0.21556]
[1736724355722,1.09985,3248.9,3248.8,1.23973129]
[1736724356127,1.09985,3248.9,3248.8,1.02417129]
[1736724357016,1.09985,3248.9,3248.8,1.23973129]
[1736724360025,0.8843,3248.9,3248.8,1.23973129]
[1736724364930,1.09985,3248.9,3248.8,1.23973129]
[1736724368126,0.8843,3248.9,3248.8,1.23973129]
[1736724368430,1.09985,3248.9,3248.8,1.23973129]
[1736724371325,0.21555,3248.9,3248.8,1.23973129]
[1736724372832,0.21555,3249.0,3248.9,0.21554]
[1736724373628,4.44526366,3249.2,3248.8,1.02417129]
[1736724373828,0.4755,3248.9,3248.8,1.23973129]
[1736724375233,0.4459,3249.3,3248.8,6.00687129]
[1736724375532,1.23746366,3249.6,3249.2,3.2078]
[1736724375829,1.3647,3249.8,3249.6,0.2155]
[1736724376422,1.3647,3249.8,3249.6,41.0155]
[1736724376736,1.3647,3249.8,3249.7,0.2155]
[1736724377336,1.3647,3249.8,3249.7,41.0155]
[1736724377838,0.4638,3249.8,3249.7,41.0155]
[1736724378032,0.8914,3250.2,3249.7,40.8]
[1736724378237,0.8914,3250.2,3250.1,1.23964129]
[1736724379033,0.8914,3250.2,3250.1,42.03964129]
[1736724379230,1.10686,3250.2,3250.1,40.8]
[1736724379636,0.21549,3249.8,3249.7,0.2155]
[1736724380336,0.21549,3249.9,3249.7,0.2155]
[1736724380734,0.4827,3249.8,3249.7,0.2155]
[1736724381035,0.4827,3249.8,3249.6,3.4233]
[1736724381435,0.4827,3249.8,3249.6,3.2078]
[1736724382047,0.4827,3249.8,3249.7,0.2155]
[1736724382738,0.8914,3250.2,3249.7,40.8]
[1736724382940,0.4827,3250.1,3250.0,0.21548]
[1736724384627,0.4827,3250.1,3249.9,0.21548]
[1736724384835,0.69817,3250.1,3249.9,0.21548]
[1736724385036,0.4827,3250.1,3250.0,0.21548]
[1736724386644,0.69818,3250.1,3249.9,0.21548]
[1736724386837,0.21549,3249.9,3249.7,41.01549]
[1736724387146,0.21548,3249.9,3249.7,41.0155]
[1736724387350,0.21548,3250.0,3249.7,41.0155]
[1736724387840,0.4827,3250.1,3249.8,0.21549]
[1736724387841,0.69818,3250.1,3249.8,0.21549]
[1736724388042,0.21548,3250.0,3249.8,0.21549]
[1736724388237,0.69817,3250.1,3249.9,0.21548]
[1736724388440,0.4827,3250.1,3250.0,0.21548]
[1736724391742,0.21548,3250.0,3249.8,0.21549]
[1736724391943,0.69817,3250.1,3249.9,0.21548]
[1736724395147,0.69817,3250.1,3250.0,0.21548]
[1736724395548,0.4827,3250.1,3250.0,0.21548]
[1736724400462,0.69817,3250.1,3250.0,0.21548]
[1736724400851,0.4827,3250.1,3250.0,0.21548]
[1736724404858,0.69817,3250.1,3250.0,0.21548]
[1736724405158,0.4827,3250.1,3250.0,0.21548]
[1736724407963,0.69817,3250.1,3250.0,0.21548]
[1736724408865,0.4827,3250.1,3250.0,0.21548]
[1736724411464,0.4827,3250.1,3250.0,41.01548]
[1736724414677,0.4565,3250.2,3250.0,40.8]
[1736724414878,0.4565,3250.2,3250.1,1.23884546]
[1736724417278,0.21547,3250.1,3250.0,41.01547]
[1736724417573,0.68557,3250.1,3250.0,41.01547]
[1736724420775,0.4701,3250.1,3250.0,41.01547]
[1736724421279,3.2078,3250.4,3250.3,0.21546]
[1736724421475,3.6787,3250.4,3250.3,1.23883546]
[1736724423876,3.6787,3250.4,3250.3,42.03883546]
[1736724425383,3.6787,3250.4,3250.3,41.01546]
[1736724426082,3.89415,3250.4,3250.3,40.8]
[1736724430285,12.33205754,3250.4,3250.3,40.8]
[1736724431178,12.11660754,3250.4,3250.3,41.01546]
[1736724432187,3.89415,3250.4,3250.3,40.8]
[1736724432984,3.89415,3250.4,3250.3,41.01546]
[1736724433382,3.6787,3250.4,3250.3,41.01546]
[1736724442693,0.4709,3250.4,3250.3,41.01546]
[1736724444692,4.89566366,3250.7,3250.3,41.01546]
[1736724444886,5.33406366,3250.7,3250.6,0.21544]
[1736724445087,4.0966,3250.7,3250.6,0.21544]
[1736724445291,3.2078,3250.7,3250.6,0.21544]
[1736724445693,3.2078,3250.7,3250.6,41.01544]
[1736724451097,0.4384,3250.9,3250.8,0.21543]
[1736724455293,0.4384,3250.9,3250.8,1.23828297]
[1736724457204,0.4384,3250.9,3250.8,0.21543]
[1736724459103,0.65382,3250.9,3250.8,0.21543]
[1736724461103,0.4384,3250.9,3250.8,0.21543]
[1736724464010,1.4496,3251.0,3250.7,1.02285297]
[1736724464212,1.4496,3251.0,3250.9,1.23827297]
[1736724464615,1.4496,3251.0,3250.9,42.03827297]
[1736724465799,1.0,3251.0,3250.9,42.03827297]
[1736724466307,1.0,3251.0,3250.9,43.52352594]
[1736724466506,11.99526939,3251.8,3251.7,0.21537]
[1736724466507,12.44936939,3251.8,3251.7,0.21537]
[1736724466705,12.44936939,3251.8,3251.7,1.23822297]
[1736724467203,12.44936939,3251.8,3251.7,42.03822297]
[1736724467403,0.4541,3251.8,3251.7,42.03822297]
[1736724472611,0.4541,3251.8,3251.7,45.24602297]
[1736724475211,0.9046,3251.9,3251.7,45.03065297]
[1736724475414,0.4482,3251.9,3251.8,0.21536]
[1736724483929,0.4482,3251.9,3251.8,0.67266]
[1736724485529,1.0,3252.0,3251.9,0.21535]
[1736724485724,0.9567,3252.2,3252.1,0.21534]
[1736724485924,0.9567,3252.2,3252.1,1.23819297]
[1736724486128,0.9567,3252.2,3252.1,42.03819297]
[1736724487796,2.19488297,3252.2,3252.1,40.8]
[1736724488260,2.19488297,3252.2,3252.1,41.01534]
[1736724488644,2.19488297,3252.2,3252.1,40.8]
[1736724489746,1.17203,3252.2,3252.1,41.01534]
[1736724490037,0.9567,3252.2,3252.1,41.01534]
[1736724490238,0.9567,3252.2,3252.1,42.03819297]
[1736724502959,1.9567,3252.2,3252.1,42.03819297]
[1736724520046,1.9567,3252.2,3252.1,1.23819297]
[1736724520638,1.0,3252.2,3252.1,1.23819297]
[1736724521041,1.0,3252.2,3252.1,42.03819297]
[1736724524250,0.4386,3252.6,3252.5,0.21531]
[1736724524552,0.4386,3252.6,3252.5,2.47016297]
[1736724524748,0.4386,3252.6,3252.5,1.44731]
[1736724525053,0.4386,3252.6,3252.5,2.47016297]
[1736724527568,0.4386,3252.6,3252.5,0.21531]
[1736724527772,0.21532,3252.5,3252.3,0.21532]
[1736724527966,0.4523,3252.5,3252.2,0.21533]
[1736724528167,0.66761,3252.5,3252.3,0.21532]
[1736724528870,0.4523,3252.5,3252.4,1.23817297]
[1736724532055,0.4523,3252.5,3252.4,0.21532]
[1736724532750,0.4523,3252.5,3252.3,0.21532]
[1736724532951,0.4523,3252.5,3252.4,1.23817297]
[1736724534956,0.21532,3252.4,3252.2,1.23818297]
[1736724535148,0.67673,3252.3,3252.2,1.02285297]
[1736724535351,0.4614,3252.3,3252.2,1.23818297]
[1736724541955,0.4614,3252.3,3252.1,41.01533]
[1736724542156,0.4614,3252.3,3252.1,40.8]
[1736724542457,0.4614,3252.3,3252.2,0.21533]
[1736724542855,0.21533,3252.2,3252.1,40.8]
[1736724543659,3.88453,3252.3,3252.1,41.01534]
[1736724544653,3.6692,3252.3,3252.1,41.01534]
[1736724544859,3.88453,3252.3,3252.1,41.01534]
[1736724546265,3.88453,3252.3,3252.1,40.8]
[1736724546566,3.88453,3252.3,3252.1,41.01533]
[1736724546860,3.6692,3252.3,3252.1,40.8]
[1736724547163,0.4614,3252.3,3252.2,1.23818297]
[1736724547364,0.4614,3252.3,3252.2,0.21533]
[1736724547759,0.67673,3252.3,3252.2,0.21533]
[1736724548363,1.48425297,3252.3,3252.1,40.8]
[1736724548564,0.21533,3252.2,3252.1,40.8]
[1736724548862,1.48425297,3252.3,3252.1,41.01534]
[1736724549263,1.69958297,3252.3,3252.1,41.01534]
[1736724549463,0.21533,3252.2,3252.1,41.01534]
[1736724549764,1.69958297,3252.3,3252.1,41.01534]
[1736724549967,0.21533,3252.2,3252.1,41.01534]
[1736724550965,1.69958297,3252.3,3252.1,40.8]
[1736724551264,1.69958297,3252.3,3252.1,41.01533]
[1736724551956,0.21533,3252.2,3252.1,40.8]
[1736724552765,4.69205297,3252.3,3251.5,3.2078]
[1736724552966,0.21535,3251.9,3251.8,0.21535]
[1736724553368,0.67255,3251.9,3251.8,0.21535]
[1736724553967,0.67255,3251.9,3251.7,0.21536]
[1736724554169,0.4754,3251.8,3251.7,0.21536]
[1736724554869,0.69076,3251.8,3251.6,0.21537]
[1736724555064,0.4352,3251.7,3251.6,1.23822297]
[1736724556766,0.4572,3251.9,3251.6,1.02285297]
[1736724556963,0.4572,3251.9,3251.8,1.23821297]
[1736724577879,0.4572,3251.9,3251.8,0.21536]
[1736724578679,0.21536,3251.8,3251.7,3.2078]
[1736724580584,1.02285297,3251.8,3251.4,41.01538]
[1736724580875,4.23065297,3251.6,3251.1,4.81099945]
[1736724581080,1.23825297,3251.2,3251.1,4.81099945]
[1736724582178,1.02285297,3251.2,3251.0,40.8]
[1736724582373,0.21541,3251.1,3251.0,40.8]
[1736724582981,0.21541,3251.1,3250.8,0.21542]
[1736724583178,0.4651,3251.0,3250.8,0.21542]
[1736724583377,0.4709,3250.9,3250.8,0.21542]
[1736724583580,0.9392,3250.9,3250.8,41.01542]
[1736724586890,0.4549,3251.3,3251.2,0.2154]
[1736724587080,0.4549,3251.3,3251.2,1.23825297]
[1736724588480,0.8914,3251.5,3251.4,0.21539]
[1736724588881,0.8914,3251.5,3251.4,1.23824297]
[1736724589080,0.8914,3251.5,3251.4,42.03824297]
[1736724589883,0.4447,3251.5,3251.4,43.26924297]
[1736724591979,0.4745,3251.8,3251.7,0.21537]
[1736724592188,0.4745,3251.8,3251.7,1.23822297]
[1736724594289,0.4687,3251.9,3251.7,1.02285297]
[1736724594485,0.4687,3251.9,3251.8,0.21536]
[1736724598496,9.66446098,3252.3,3252.2,0.21533]
[1736724598686,10.34389098,3252.3,3252.1,1.23819297]
[1736724599188,10.12856098,3252.3,3252.2,40.8]
[1736724599481,10.12856098,3252.3,3252.2,41.01533]
[1736724601693,9.66446098,3252.3,3252.2,45.45313]
[1736724601996,0.06446098,3252.3,3252.2,45.45313]
[1736724602202,10.8725186,3252.5,3252.2,45.2378]
[1736724602389,10.8725186,3252.5,3252.4,1.23817297]
[1736724602692,4.5704,3252.9,3252.4,1.02285297]
[1736724602892,4.5704,3252.9,3252.7,1.02285297]
[1736724603092,4.5704,3252.9,3252.8,41.01529]
[1736724603285,4.1223,3252.9,3252.8,41.01529]
[1736724604690,1.0,3253.0,3252.8,44.0078]
[1736724604896,1.0,3253.0,3252.9,2.37314955]
[1736724605983,1.0,3253.0,3252.9,3.60314955]
[1736724606685,1.0,3253.0,3252.9,4.03864955]
[1736724606991,0.9125,3253.6,3252.9,3.82335955]
[1736724607188,0.9125,3253.6,3253.5,2.37310955]
[1736724607388,0.9125,3253.6,3253.5,2.15785955]
[1736724607593,0.9125,3253.6,3253.5,40.8]
[1736724607790,0.9125,3253.6,3253.0,3.2078]
[1736724608094,3.2078,3253.4,3252.9,1.23]
[1736724608295,0.21527,3253.2,3253.0,40.8]
[1736724608695,0.4613,3253.1,3253.0,40.8]
[1736724609500,0.67657,3253.1,3253.0,40.8]
[1736724611386,0.4613,3253.1,3253.0,41.01528]
[1736724613803,0.4613,3253.1,3253.0,40.8]
[1736724614104,0.67657,3253.1,3253.0,40.8]
[1736724627204,3.2078,3253.8,3253.0,42.95785955]
[1736724627409,0.9246,3253.9,3253.8,0.21523]
[1736724627813,0.9246,3253.9,3253.8,41.01523]
[1736724630419,0.002,3254.0,3253.8,40.8]
[1736724630714,3.2078,3254.9,3254.8,0.21516]
[1736724630910,3.6537,3254.9,3254.8,0.21516]
[1736724631507,3.6537,3254.9,3254.8,40.8]
[1736724631709,3.86885,3254.9,3254.8,40.8]
[1736724633117,3.6537,3254.9,3254.8,40.8]
[1736724633317,3.86885,3254.9,3254.8,40.8]
[1736724634820,0.21518,3254.5,3254.4,0.21518]
[1736724635124,0.21519,3254.4,3254.3,1.229]
[1736724635319,0.4817,3254.4,3254.3,1.44419]
[1736724635618,0.4817,3254.4,3254.3,0.21519]
[1736724638323,0.4624,3254.8,3254.2,40.8]
[1736724638628,0.21517,3254.6,3254.4,0.21518]
[1736724639321,0.21517,3254.6,3254.5,0.21518]
[1736724639719,0.4642,3254.7,3254.2,40.8]
[1736724639928,0.67937,3254.7,3254.6,0.21517]
[1736724640329,0.4642,3254.7,3254.6,0.21517]
[1736724640628,0.4642,3254.7,3254.5,0.21518]
[1736724640828,0.21518,3254.6,3254.4,0.21518]
[1736724641028,0.21518,3254.6,3254.2,40.8]
[1736724641519,0.21518,3254.6,3254.5,0.21518]
[1736724641929,0.21518,3254.6,3254.4,0.21518]
[1736724642123,0.21518,3254.6,3254.2,40.8]
[1736724642319,0.21518,3254.6,3254.5,0.21518]
[1736724643331,0.67937,3254.7,3254.2,40.8]
[1736724643530,0.67937,3254.7,3254.5,0.21518]
[1736724644622,0.67937,3254.7,3254.6,0.21517]
[1736724644827,0.21517,3254.6,3254.5,0.21518]
[1736724645530,0.67937,3254.7,3254.6,0.21517]
[1736724647525,0.21517,3254.6,3254.5,0.21517]
[1736724647731,0.4642,3254.7,3254.6,0.21517]
[1736724652322,3.6537,3254.9,3254.8,0.21516]
[1736724652532,3.2078,3254.9,3254.8,0.21516]
[1736724652919,3.2078,3254.9,3254.8,41.01516]
[1736724659635,3.2078,3255.3,3255.2,0.21513]
[1736724660136,3.2078,3255.3,3255.2,1.44413]
[1736724660433,3.2078,3255.3,3255.2,42.24413]
[1736724661338,1.417,3255.8,3255.7,0.2151]
[1736724662138,1.417,3255.8,3255.7,41.0151]
[1736724662642,0.4663,3255.8,3255.7,41.0151]
[1736724663434,3.2078,3255.9,3255.8,0.21509]
[1736724663647,3.2078,3255.9,3255.8,2.37294955]
[1736724664039,3.2078,3255.9,3255.8,43.17294955]
[1736724665435,3.2078,3256.4,3255.8,42.95785955]
[1736724665743,3.2078,3256.4,3256.3,0.21506]
[1736724667243,0.897,3256.5,3256.4,0.21506]
[1736724667539,3.2078,3256.8,3256.7,0.21504]
[1736724668945,0.4402,3257.0,3256.9,0.21502]
[1736724669141,0.4402,3257.0,3256.9,2.37287955]
[1736724669348,0.4402,3257.0,3256.9,43.17287955]
[1736724669746,0.4402,3257.0,3256.9,41.01502]
[1736724673549,0.4402,3257.0,3256.9,0.21502]
[1736724676454,0.4402,3257.0,3256.9,41.01502]
[1736724678853,0.65522,3257.0,3256.9,40.8]
[1736724679153,0.4402,3257.0,3256.9,41.01502]
[1736724682461,1.12342,3257.0,3256.9,40.8]
[1736724683063,1.44595,3257.0,3256.3,0.21506]
[1736724683259,1.44595,3257.0,3255.7,3.6663]
[1736724683260,3.2078,3256.4,3255.7,3.6663]
[1736724683459,3.2078,3256.4,3256.0,40.8]
[1736724683460,1.63506,3256.3,3256.0,40.8]
[1736724683652,0.21507,3256.2,3256.1,0.21507]
[1736724683856,0.21507,3256.2,3256.0,40.8]
[1736724684264,1.42,3256.3,3256.1,0.21508]
[1736724684461,0.21507,3256.2,3256.1,0.21508]
[1736724684863,0.21507,3256.2,3256.1,0.21507]
[1736724685259,1.63507,3256.3,3256.2,0.21507]
[1736724685966,1.63507,3256.3,3256.1,0.21507]
[1736724686167,1.42,3256.3,3256.1,0.21507]
[1736724686465,0.21507,3256.2,3256.1,0.21507]
[1736724687562,1.42,3256.3,3256.0,40.8]
[1736724687872,0.21508,3256.1,3256.0,41.01508]
[1736724688458,0.21507,3256.2,3256.1,0.21507]
[1736724689158,1.42,3256.3,3256.0,40.8]
[1736724689357,0.21508,3256.1,3256.0,0.21508]
[1736724689559,1.42,3256.3,3255.7,3.2078]
[1736724689765,0.21508,3256.0,3255.9,0.21508]
[1736724689965,0.21508,3256.0,3255.9,41.01508]
[1736724690861,0.21508,3256.1,3256.0,0.21508]
[1736724691063,0.21507,3256.2,3256.1,0.21507]
[1736724692759,1.42,3256.3,3255.9,40.8]
[1736724692964,1.42,3256.3,3256.2,0.21507]
[1736724693265,1.63506,3256.3,3256.2,0.21507]
[1736724693666,1.42,3256.3,3256.2,0.21507]
[1736724693868,0.4744,3256.3,3256.2,0.21507]
[1736724694766,1.3461,3256.3,3256.2,0.21507]
[1736724695168,0.4744,3256.3,3256.2,0.21507]
[1736724696364,3.2078,3256.4,3256.3,0.21506]
[1736724701081,0.21506,3256.3,3256.2,0.21507]
[1736724701281,1.13696,3256.3,3256.2,0.21507]
[1736724701467,0.21507,3256.2,3256.0,0.4677]
[1736724701671,0.4739,3256.1,3256.0,0.21508]
[1736724703278,3.2078,3256.4,3256.3,0.21506]
[1736724703984,3.2078,3256.4,3256.3,41.01506]
[1736724706982,1.3991,3256.6,3256.3,40.8]
[1736724707176,3.2078,3256.8,3256.5,2.15785955]
[1736724707483,3.2078,3256.8,3256.7,0.21504]
[1736724708589,3.2078,3256.8,3256.7,41.01504]
[1736724710386,3.20909077,3256.8,3256.7,41.01504]
[1736724711079,3.42412077,3256.8,3256.7,41.01504]
[1736724711290,3.42412077,3256.8,3256.7,40.8]
[1736724711889,3.20909077,3256.8,3256.7,41.01504]
[1736724712487,3.42412077,3256.8,3256.7,40.8]
[1736724713094,3.42412077,3256.8,3256.7,41.01504]
[1736724713486,3.20909077,3256.8,3256.7,41.01504]
[1736724713792,3.42412077,3256.8,3256.7,41.01504]
[1736724714288,3.20909077,3256.8,3256.7,41.01504]
[1736724717193,3.68599077,3256.8,3256.7,41.01504]
[1736724717593,4.14179077,3256.8,3256.7,41.01504]
[1736724731605,0.93399077,3256.8,3256.7,41.01504]
[1736724733307,0.00129077,3256.8,3256.7,41.01504]
[1736724733902,0.00129077,3256.8,3256.7,41.46134]
[1736724734109,0.00129077,3256.8,3256.7,41.01504]
[1736724735608,0.21632077,3256.8,3256.7,41.01504]
[1736724736202,0.00129077,3256.8,3256.7,41.01504]
[1736724739212,3.20909077,3256.8,3256.7,41.01504]
[1736724740513,0.00129077,3256.8,3256.7,41.01504]
[1736724749323,0.9186,3257.5,3256.7,40.8]
[1736724749524,4.20670413,3257.6,3256.6,0.9173]
[1736724749525,3.2078,3257.6,3257.4,2.15785955]
[1736724749819,3.2078,3257.6,3257.5,1.44198]
[1736724750023,3.2078,3257.6,3257.5,42.24198]
[1736724751324,1.3801,3258.0,3257.9,0.21496]
[1736724752927,1.59505,3258.0,3257.9,0.21496]
[1736724753330,1.3801,3258.0,3257.9,0.21496]
[1736724756029,1.59505,3258.0,3257.9,0.21496]
[1736724757433,1.3801,3258.0,3257.9,0.21496]
[1736724759325,1.59505,3258.0,3257.9,0.21496]
[1736724759530,1.3801,3258.0,3257.9,0.21496]
[1736724760730,1.59505,3258.0,3257.9,0.21496]
[1736724760926,1.3801,3258.0,3257.9,0.21496]
[1736724769544,3.2078,3258.5,3258.4,0.21492]
[1736724769745,1.15821,3258.7,3258.6,0.21491]
[1736724769942,1.15821,3258.7,3258.6,43.17276955]
[1736724770339,1.15821,3258.7,3258.6,42.95785955]
[1736724770735,0.9433,3258.7,3258.6,43.17276955]
[1736724771236,0.4787,3258.7,3258.6,43.17276955]
[1736724771441,3.88728,3259.0,3258.9,0.21489]
[1736724771644,0.21489,3258.9,3258.8,0.21489]
[1736724773045,4.32709,3259.0,3258.9,0.21489]
[1736724773244,4.32709,3259.0,3258.9,2.37274955]
[1736724773637,4.32709,3259.0,3258.9,2.15785955]
[1736724773839,4.32709,3259.0,3258.9,2.37274955]
[1736724774034,4.32709,3259.0,3258.9,2.15785955]
[1736724774843,4.32709,3259.0,3258.9,2.37274955]
[1736724775840,4.32709,3259.0,3258.9,2.15785955]
[1736724778347,4.32709,3259.0,3258.9,2.37274955]
[1736724780145,4.32709,3259.0,3258.9,2.15785955]
[1736724781147,4.1122,3259.0,3258.9,2.37274955]
[1736724782152,4.1122,3259.0,3258.9,43.17274955]
[1736724783453,4.32708,3259.0,3258.9,43.17274955]
[1736724785849,4.32708,3259.0,3258.9,42.95785955]
[1736724787055,4.32708,3259.0,3258.9,43.17274955]
[1736724787250,4.1122,3259.0,3258.9,43.17274955]
[1736724790851,3.2078,3259.0,3258.9,43.17274955]
[1736724791455,3.2078,3259.0,3258.9,43.04965192]
[1736724792865,3.2078,3259.0,3258.9,42.03227096]
[1736724793159,3.2078,3259.0,3258.9,43.04965192]
[1736724793359,1.4104,3259.4,3258.9,43.04965192]
[1736724793360,0.002,3259.5,3259.4,0.21486]
[1736724793565,0.002,3259.5,3259.4,1.43986]
[1736724793761,0.002,3259.5,3259.2,2.14826397]
[1736724793762,0.002,3259.5,3259.3,0.21486]
[1736724794066,3.2078,3259.4,3259.2,3.58813397]
[1736724794560,0.002,3259.5,3259.3,40.8]
[1736724794860,0.002,3259.5,3259.4,2.36312397]
[1736724795558,0.002,3259.5,3259.4,43.16312397]
[1736724796767,0.002,3259.5,3259.4,40.8]
[1736724796965,1.3866,3259.5,3259.4,41.01486]
[1736724797666,1.3866,3259.5,3258.5,3.2078]
[1736724797854,3.2078,3259.1,3259.0,0.21488]
[1736724798259,3.2078,3259.1,3259.0,41.01488]
[1736724798468,3.2078,3259.1,3259.0,40.8]
[1736724798662,3.2078,3259.1,3259.0,41.01488]
[1736724798860,3.2078,3259.1,3259.0,43.16314397]
[1736724802263,4.5944,3259.5,3259.0,42.94826397]
[1736724802864,4.80926,3259.5,3259.0,42.94826397]
[1736724803069,4.80926,3259.5,3259.3,0.21486]
[1736724803271,4.5944,3259.5,3259.3,0.21486]
[1736724803464,4.80925,3259.5,3259.3,0.21486]
[1736724803863,4.5944,3259.5,3259.0,42.94826397]
[1736724804065,4.5944,3259.5,3259.4,0.21486]
[1736724804569,3.2098,3259.5,3259.4,41.01486]
[1736724805465,3.2098,3259.5,3259.4,40.8]
[1736724805665,3.42465,3259.5,3259.4,40.8]
[1736724806263,3.2098,3259.5,3259.4,40.8]
[1736724806466,3.42465,3259.5,3259.4,40.8]
[1736724806772,3.2098,3259.5,3259.4,41.01486]
[1736724809075,3.42465,3259.5,3259.4,41.01486]
[1736724809265,3.2098,3259.5,3259.4,41.01486]
[1736724811176,3.42465,3259.5,3259.4,40.8]
[1736724811379,3.42465,3259.5,3259.4,41.01486]
[1736724811572,3.2098,3259.5,3259.4,41.01486]
[1736724813969,0.002,3259.5,3259.4,41.01486]
[1736724814770,0.9228,3259.5,3259.4,41.01486]
[1736724816172,1.13765,3259.5,3259.4,41.01486]
[1736724816773,0.9228,3259.5,3259.4,41.01486]
[1736724819071,1.13765,3259.5,3259.4,40.8]
[1736724819282,1.13765,3259.5,3259.4,41.01486]
[1736724820074,1.13765,3259.5,3259.4,40.8]
[1736724820280,0.9228,3259.5,3259.4,41.01486]
[1736724820578,1.13765,3259.5,3259.4,41.01486]
[1736724820774,1.13765,3259.5,3259.4,40.8]
[1736724821783,0.9228,3259.5,3259.4,41.01486]
[1736724822780,0.002,3259.5,3259.4,41.01486]
[1736724822976,0.8998,3259.5,3259.4,41.01486]
[1736724825376,0.002,3259.5,3259.4,41.01486]
[1736724832986,0.21685,3259.5,3259.4,41.01486]
[1736724833895,0.002,3259.5,3259.4,41.01486]
[1736724834096,0.21685,3259.5,3259.4,41.01486]
[1736724835791,0.002,3259.5,3259.4,41.01486]
[1736724835997,0.21685,3259.5,3259.4,41.01486]
[1736724837499,0.21685,3259.5,3259.4,42.03220671]
[1736724839901,0.21685,3259.5,3259.4,41.81734671]
[1736724840101,0.21685,3259.5,3259.4,40.8]
[1736724840597,1.23419671,3259.5,3259.4,40.8]
[1736724843403,0.21685,3259.5,3259.4,40.8]
[1736724843697,0.21487,3259.3,3259.2,0.21487]
[1736724844200,0.21487,3259.3,3259.2,41.01487]
[1736724844393,0.21685,3259.5,3259.4,0.21486]
[1736724845702,0.21486,3259.4,3259.3,0.21486]
[1736724847506,0.002,3259.5,3259.4,0.21486]
[1736724850607,0.002,3259.5,3259.4,1.43886]
[1736724857008,0.002,3259.5,3259.4,1.90466]
[1736724857419,4.1322,3260.1,3260.0,0.21482]
[1736724857717,3.6795,3260.1,3260.0,0.21482]
[1736724858013,11.06942649,3260.2,3260.1,0.21481]
[1736724858014,10.85461649,3260.2,3260.1,0.21481]
[1736724858210,3.2078,3260.8,3260.3,0.2148]
[1736724858426,0.9021,3260.9,3260.3,46.37253238]
[1736724858829,0.9021,3260.9,3260.8,0.21477]
[1736724860830,0.4561,3260.9,3260.8,0.21477]
[1736724861932,0.67086,3260.9,3260.8,0.21477]
[1736724862326,0.21478,3260.7,3260.5,0.21478]
[1736724862527,0.4771,3260.6,3260.5,0.21478]
[1736724862924,3.2078,3261.2,3260.4,1.224]
[1736724863125,0.21473,3261.4,3260.4,1.224]
[1736724863126,3.2078,3261.6,3261.1,2.14993238]
[1736724863326,3.2078,3261.6,3261.3,0.21473]
[1736724863327,0.21472,3261.5,3261.3,0.21473]
[1736724863527,0.4754,3261.4,3261.3,0.21473]
[1736724863728,0.21473,3261.3,3261.1,0.21474]
[1736724864032,0.68023,3261.3,3260.8,2.14993238]
[1736724864228,0.68023,3261.3,3260.9,0.21476]
[1736724864229,0.21474,3261.2,3260.9,0.21476]
[1736724864427,0.21474,3261.2,3261.0,0.21475]
[1736724865023,0.4655,3261.3,3260.8,3.37393238]
[1736724865228,0.4655,3261.3,3260.8,1.224]
[1736724865229,0.21475,3261.0,3260.8,1.224]
[1736724865429,0.21476,3260.9,3260.8,1.224]
[1736724865633,0.69136,3260.9,3260.8,1.224]
[1736724865833,0.4766,3260.9,3260.8,1.43877]
[1736724866035,3.2078,3261.2,3261.1,0.21475]
[1736724866734,0.9421,3261.3,3261.2,0.21474]
[1736724867033,0.9421,3261.3,3261.2,41.01474]
[1736724867638,1.15683,3261.3,3261.2,41.01474]
[1736724867935,3.2078,3262.2,3261.2,40.8]
[1736724868135,0.21471,3261.6,3261.4,2.36465238]
[1736724868431,0.4345,3261.5,3261.4,2.36465238]